bitfinex-derivatives/quotes_BTCF0:USTF0_20250812
["timestamp","ask_amount","ask_price","bid_price","bid_amount"]
[1754982898624,0.31819883,119170.0,119160.0,0.46129056]
[1754982898828,1.08444883,119170.0,119160.0,0.51337056]
[1754982899228,1.08467883,119170.0,119160.0,0.51337056]
[1754982900322,1.08467883,119170.0,119160.0,0.64043755]
[1754982900923,1.08467883,119170.0,119160.0,0.64143755]
[1754982901123,0.31879883,119170.0,119160.0,0.64143755]
[1754982901329,1.08463883,119170.0,119160.0,0.64143755]
[1754982901732,0.01738357,119170.0,119160.0,0.64143755]
[1754982902029,0.76607,119170.0,119160.0,0.96183075]
[1754982902233,1.06785526,119170.0,119160.0,0.66041549]
[1754982902731,0.76644,119170.0,119160.0,0.66041549]
[1754982902919,3.12854241,119200.0,119180.0,0.251729]
[1754982903120,0.8507842,119190.0,119180.0,0.354629]
[1754982903320,1.15219946,119190.0,119180.0,0.2707178]
[1754982903730,1.15219946,119190.0,119180.0,0.2958478]
[1754982904628,1.15219946,119190.0,119180.0,0.2617378]
[1754982904832,1.45361472,119190.0,119180.0,0.2617378]
[1754982905028,1.45361472,119190.0,119180.0,0.2450278]
[1754982905236,1.45361472,119190.0,119180.0,0.2220278]
[1754982905429,1.45361472,119190.0,119180.0,0.34909479]
[1754982906137,1.45561472,119190.0,119180.0,0.34909479]
[1754982906331,0.8527842,119190.0,119180.0,0.34909479]
[1754982906536,1.45561472,119190.0,119180.0,0.34909479]
[1754982907136,1.45761472,119190.0,119180.0,0.34909479]
[1754982907338,0.8547842,119190.0,119180.0,0.34909479]
[1754982907547,1.45761472,119190.0,119180.0,0.34909479]
[1754982908832,1.15619946,119190.0,119180.0,0.34909479]
[1754982910239,1.15619946,119190.0,119180.0,0.36757047]
[1754982910439,1.45761472,119190.0,119180.0,0.36757047]
[1754982911138,1.45761472,119190.0,119180.0,0.35057047]
[1754982912037,1.45561472,119190.0,119180.0,0.35057047]
[1754982912340,1.45361472,119190.0,119180.0,0.25557927]
[1754982912643,1.45361472,119190.0,119180.0,0.25457927]
[1754982912939,1.45361472,119190.0,119180.0,0.25657927]
[1754982913739,1.45361472,119190.0,119180.0,0.23810359]
[1754982914335,1.45361472,119190.0,119180.0,0.23910359]
[1754982916242,0.68733472,119190.0,119180.0,0.23910359]
[1754982916444,1.45317472,119190.0,119180.0,0.31900359]
[1754982916836,1.45317472,119190.0,119180.0,0.34200359]
[1754982917036,1.15175946,119190.0,119180.0,0.34200359]
[1754982921043,1.15175946,119190.0,119180.0,0.21397359]
[1754982921348,1.45317472,119190.0,119180.0,0.23807359]
[1754982922845,1.45317472,119190.0,119180.0,0.13006699]
[1754982923049,1.45317472,119190.0,119180.0,0.23807819]
[1754982923543,1.59257472,119190.0,119180.0,0.15416699]
[1754982923935,1.59257472,119190.0,119180.0,0.13006699]
[1754982925651,1.59257472,119190.0,119180.0,0.23807819]
[1754982928156,1.59257472,119190.0,119180.0,0.15416699]
[1754982928356,0.9897442,119190.0,119180.0,0.23807819]
[1754982928554,1.59257472,119190.0,119180.0,0.23807819]
[1754982929258,1.59257472,119190.0,119180.0,0.15416699]
[1754982931557,1.59257472,119190.0,119180.0,0.13006699]
[1754982932261,1.59257472,119190.0,119180.0,0.15416699]
[1754982933563,1.59341472,119190.0,119180.0,0.15416699]
[1754982934165,1.61051471,119190.0,119180.0,0.15416699]
[1754982944269,1.61051471,119190.0,119180.0,0.23807819]
[1754982946168,1.61051471,119190.0,119180.0,0.15416699]
[1754982948874,1.00768419,119190.0,119180.0,0.15416699]
[1754982949073,1.61051471,119190.0,119180.0,0.15416699]
[1754982952570,1.91104997,119190.0,119180.0,0.13006699]
[1754982952777,1.91104997,119190.0,119180.0,0.15327699]
[1754982956686,0.0839182,119170.0,119160.0,0.217868]
[1754982956884,1.46857872,119170.0,119160.0,0.266918]
[1754982957580,1.47969872,119170.0,119160.0,0.09907]
[1754982957787,1.45277872,119170.0,119160.0,0.1829953]
[1754982957983,1.45277872,119170.0,119160.0,0.1869953]
[1754982958880,1.45277872,119170.0,119160.0,0.2102053]
[1754982959081,0.8497182,119170.0,119160.0,0.2102053]
[1754982959288,1.15136346,119170.0,119160.0,0.2112053]
[1754982959989,1.45277872,119170.0,119160.0,0.33827229]
[1754982960190,1.15136346,119170.0,119160.0,0.33327229]
[1754982961183,1.45277872,119170.0,119160.0,0.33327229]
[1754982964286,1.59217872,119170.0,119160.0,0.33327229]
[1754982966291,1.29076346,119170.0,119160.0,0.33327229]
[1754982966681,1.59217872,119170.0,119160.0,0.33327229]
[1754982969691,1.60329872,119170.0,119160.0,0.33327229]
[1754982975104,1.30188346,119170.0,119160.0,0.33327229]
[1754982975500,1.60329872,119170.0,119160.0,0.33327229]
[1754982979405,1.46389872,119170.0,119160.0,0.33327229]
[1754982979701,0.69809872,119170.0,119160.0,0.33327229]
[1754982980007,1.48094872,119170.0,119160.0,0.33327229]
[1754982991615,1.48132872,119170.0,119160.0,0.28325229]
[1754982991817,1.48132872,119170.0,119160.0,0.33142229]
[1754982993118,1.17991346,119170.0,119160.0,0.33142229]
[1754982993610,0.70402872,119170.0,119160.0,0.33134229]
[1754982993820,1.16837346,119170.0,119160.0,0.33134229]
[1754982994316,1.08445526,119170.0,119160.0,0.63275755]
[1754982995326,1.16837316,119170.0,119160.0,0.33134229]
[1754982996716,1.08445526,119170.0,119160.0,0.33134229]
[1754982998118,0.31869526,119170.0,119160.0,0.33234229]
[1754982998323,1.08441526,119170.0,119160.0,0.33334229]
[1754982998531,0.01668,119170.0,119160.0,0.93617281]
[1754982998826,0.54093172,119190.0,119160.0,0.93617281]
[1754982998827,0.63588072,119190.0,119180.0,0.0839107]
[1754982999024,0.63588072,119190.0,119180.0,0.2042607]
[1754982999025,1.41865072,119190.0,119180.0,0.2042607]
[1754982999323,1.41888072,119190.0,119180.0,0.2042607]
[1754983000120,2.02171124,119190.0,119180.0,0.2052607]
[1754983000424,2.02171124,119190.0,119180.0,0.33332769]
[1754983001825,2.02171124,119190.0,119180.0,0.34258908]
[1754983003026,2.02171124,119190.0,119180.0,0.33332769]
[1754983006233,1.72029598,119190.0,119180.0,0.33332769]
[1754983006626,1.72029598,119190.0,119180.0,0.34265827]
[1754983007730,1.28039598,119190.0,119180.0,0.34265827]
[1754983008432,1.26935598,119190.0,119180.0,0.34265827]
[1754983008824,1.28039598,119190.0,119180.0,0.34265827]
[1754983009436,1.26326886,119190.0,119180.0,0.34265827]
[1754983009733,0.49754886,119190.0,119180.0,0.34265827]
[1754983009935,1.16819986,119190.0,119180.0,0.34265827]
[1754983010636,1.17912986,119190.0,119180.0,0.34265827]
[1754983010836,0.40259986,119190.0,119180.0,0.34265827]
[1754983011037,1.16819986,119190.0,119180.0,0.34265827]
[1754983011431,1.16759986,119190.0,119180.0,0.34265827]
[1754983011633,1.16782986,119190.0,119180.0,0.34265827]
[1754983012228,1.17875986,119190.0,119180.0,0.34265827]
[1754983013237,1.17871986,119190.0,119180.0,0.34265827]
[1754983016339,1.17871986,119190.0,119180.0,0.33332769]
[1754983016639,0.41315986,119190.0,119180.0,0.33332769]
[1754983016841,1.17904986,119190.0,119180.0,0.33332769]
[1754983019241,1.17900986,119190.0,119180.0,0.33332769]
[1754983019635,0.41352986,119190.0,119180.0,0.33332769]
[1754983019844,1.17900986,119190.0,119180.0,0.33332769]
[1754983020142,0.41352986,119190.0,119180.0,0.33332769]
[1754983020336,0.40259986,119190.0,119180.0,0.28515769]
[1754983020542,1.17900986,119190.0,119180.0,0.33492769]
[1754983021237,1.48042512,119190.0,119180.0,0.21297769]
[1754983021432,1.48042512,119190.0,119180.0,0.12906699]
[1754983021628,0.7209332,119190.0,119180.0,0.21297769]
[1754983021829,0.7209332,119190.0,119180.0,0.33740769]
[1754983021830,1.4973432,119190.0,119180.0,0.33740769]
[1754983025949,0.7318632,119190.0,119180.0,0.33740769]
[1754983026141,1.4973032,119190.0,119180.0,0.33740769]
[1754983027550,0.7318632,119190.0,119180.0,0.33740769]
[1754983027752,1.4972632,119190.0,119180.0,0.33740769]
[1754983029152,1.19584794,119190.0,119180.0,0.33740769]
[1754983030553,1.4972632,119190.0,119180.0,0.33740769]
[1754983035955,1.19584794,119190.0,119180.0,0.33740769]
[1754983037459,0.89443268,119190.0,119180.0,0.33740769]
[1754983037749,1.19584794,119190.0,119180.0,0.33740769]
[1754983040855,0.01728,119190.0,119180.0,0.28763769]
[1754983041061,0.40259896,119190.0,119180.0,0.93844821]
[1754983041359,0.40259896,119190.0,119180.0,0.63703295]
[1754983044853,0.40259896,119190.0,119180.0,0.33561769]
[1754983045460,0.40259896,119190.0,119180.0,0.63703295]
[1754983045760,0.40259896,119190.0,119180.0,0.33561769]
[1754983045962,0.1011837,119190.0,119180.0,0.33561769]
[1754983046157,0.40259896,119190.0,119180.0,0.33561769]
[1754983046358,0.41352896,119190.0,119180.0,0.33561769]
[1754983046554,0.1121137,119190.0,119180.0,0.33561769]
[1754983046759,1.18304896,119190.0,119180.0,0.63703295]
[1754983046965,1.18304896,119190.0,119180.0,0.33561769]
[1754983048863,0.8816337,119190.0,119180.0,0.33561769]
[1754983049057,1.18304896,119190.0,119180.0,0.33561769]
[1754983050552,1.18304896,119190.0,119180.0,0.63703295]
[1754983050755,1.18304896,119190.0,119180.0,0.33561769]
[1754983050961,1.18304896,119190.0,119180.0,0.63703295]
[1754983051366,0.8816337,119190.0,119180.0,0.63703295]
[1754983051663,1.18304896,119190.0,119180.0,0.63703295]
[1754983054066,1.17211896,119190.0,119180.0,0.63703295]
[1754983054764,0.40259896,119190.0,119180.0,0.63703295]
[1754983055063,1.17159896,119190.0,119180.0,0.63703295]
[1754983056161,1.08769526,119190.0,119180.0,0.63703295]
[1754983056465,0.78568,119190.0,119180.0,0.63703295]
[1754983056667,1.08732526,119190.0,119180.0,0.63703295]
[1754983057560,1.08732526,119190.0,119180.0,0.33561769]
[1754983057759,1.08732526,119190.0,119180.0,0.63703295]
[1754983058867,0.78591,119190.0,119180.0,0.63703295]
[1754983059163,1.08769526,119190.0,119180.0,0.63703295]
[1754983059768,0.78628,119190.0,119180.0,0.63703295]
[1754983059967,1.08769526,119190.0,119180.0,0.63703295]
[1754983060667,0.769,119190.0,119180.0,0.63703295]
[1754983060867,1.08714526,119190.0,119180.0,0.63703295]
[1754983061370,0.78573,119190.0,119180.0,0.63703295]
[1754983061562,1.08751526,119190.0,119180.0,0.63703295]
[1754983063570,0.7861,119190.0,119180.0,0.63703295]
[1754983063773,1.08751526,119190.0,119180.0,0.63703295]
[1754983064070,0.7861,119190.0,119180.0,0.33561769]
[1754983064275,1.08751526,119190.0,119180.0,0.63703295]
[1754983064572,1.08751526,119190.0,119180.0,0.33561769]
[1754983064774,1.08751526,119190.0,119180.0,0.63703295]
[1754983065674,0.7861,119190.0,119180.0,0.63703295]
[1754983065874,1.08751526,119190.0,119180.0,0.63703295]
[1754983066073,1.08751526,119190.0,119180.0,0.93844821]
[1754983066676,1.08751526,119190.0,119180.0,0.63703295]
[1754983066990,0.7861,119190.0,119180.0,0.93844821]
[1754983067284,1.08751526,119190.0,119180.0,0.93844821]
[1754983068180,0.7861,119190.0,119180.0,0.33561769]
[1754983068383,0.7861,119190.0,119180.0,0.93844821]
[1754983068581,1.08751526,119190.0,119180.0,0.93844821]
[1754983069687,1.08751526,119190.0,119180.0,0.63703295]
[1754983069887,0.7861,119190.0,119180.0,0.63703295]
[1754983070090,0.7861,119190.0,119180.0,0.93844821]
[1754983070782,1.08751526,119190.0,119180.0,0.93844821]
[1754983070985,0.31851526,119190.0,119180.0,0.93844821]
[1754983071286,1.08723526,119190.0,119180.0,0.93844821]
[1754983072388,0.53548376,119210.0,119200.0,0.0838967]
[1754983072689,1.0326085,119210.0,119200.0,0.39432205]
[1754983072886,2.5328385,119210.0,119200.0,0.2062967]
[1754983073084,2.83425376,119210.0,119200.0,0.1718367]
[1754983073286,3.13566902,119210.0,119200.0,0.1718367]
[1754983073483,2.4763954,119210.0,119200.0,0.2062967]
[1754983073783,2.77881066,119210.0,119200.0,0.2062967]
[1754983073988,2.77981066,119210.0,119200.0,0.2062967]
[1754983074192,2.91911066,119210.0,119200.0,0.2062967]
[1754983074387,2.77981066,119210.0,119200.0,0.2062967]
[1754983074690,2.69591496,119210.0,119200.0,0.45775196]
[1754983074884,2.61202526,119210.0,119200.0,0.2062967]
[1754983075190,2.69591486,119210.0,119200.0,0.2062967]
[1754983075389,2.69591486,119210.0,119200.0,0.33336369]
[1754983075686,2.69491486,119210.0,119200.0,0.33336369]
[1754983075889,2.99433012,119210.0,119200.0,0.33336369]
[1754983076095,2.69291486,119210.0,119200.0,0.33336369]
[1754983076589,1.19191486,119210.0,119200.0,0.33336369]
[1754983077791,0.8904996,119210.0,119200.0,0.33336369]
[1754983077988,1.19191486,119210.0,119200.0,0.33336369]
[1754983079385,1.19191486,119210.0,119200.0,0.33436369]
[1754983079989,1.19191486,119210.0,119200.0,0.33536369]
[1754983080391,1.49333012,119210.0,119200.0,0.33536369]
[1754983083092,0.8904996,119210.0,119200.0,0.33536369]
[1754983083294,1.19191486,119210.0,119200.0,0.33536369]
[1754983085299,1.49333012,119210.0,119200.0,0.33536369]
[1754983086192,1.19191486,119210.0,119200.0,0.33536369]
[1754983089199,0.8904996,119210.0,119200.0,0.33536369]
[1754983089401,1.19191486,119210.0,119200.0,0.33536369]
[1754983092708,0.32726526,119210.0,119200.0,0.63677895]
[1754983092908,1.09473526,119210.0,119200.0,0.63677895]
[1754983093202,0.40022486,119210.0,119200.0,0.63677895]
[1754983093408,1.17862486,119210.0,119200.0,0.33536369]
[1754983094207,0.40952486,119210.0,119200.0,0.63677895]
[1754983094507,1.18772486,119210.0,119200.0,0.63677895]
[1754983094707,0.40952486,119210.0,119200.0,0.63677895]
[1754983094905,0.31633526,119210.0,119200.0,0.63677895]
[1754983095102,0.40022486,119210.0,119200.0,0.63677895]
[1754983095302,0.40022486,119210.0,119200.0,0.33536369]
[1754983095499,0.0988096,119210.0,119200.0,0.63677895]
[1754983095709,0.40022486,119210.0,119200.0,0.63677895]
[1754983097713,0.0988096,119210.0,119200.0,0.63677895]
[1754983097915,0.40022486,119210.0,119200.0,0.63677895]
[1754983098215,0.0988096,119210.0,119200.0,0.63677895]
[1754983098516,0.40022486,119210.0,119200.0,0.63677895]
[1754983100817,0.40022486,119210.0,119200.0,0.33536369]
[1754983102519,0.40022486,119210.0,119200.0,0.63677895]
[1754983102713,0.39999486,119210.0,119200.0,0.63677895]
[1754983102915,1.17723486,119210.0,119200.0,0.33536369]
[1754983104107,1.17723486,119210.0,119200.0,0.63677895]
[1754983104310,1.07865526,119210.0,119200.0,0.63677895]
[1754983104712,1.16254496,119210.0,119200.0,0.33536369]
[1754983104919,1.16254496,119210.0,119200.0,0.63677895]
[1754983105619,0.8611297,119210.0,119200.0,0.63677895]
[1754983105820,1.17743496,119210.0,119200.0,0.63677895]
[1754983106121,0.8760197,119210.0,119200.0,0.63677895]
[1754983106418,1.17743496,119210.0,119200.0,0.63677895]
[1754983110819,1.17743496,119210.0,119200.0,0.33536369]
[1754983111018,1.17743496,119210.0,119200.0,0.63677895]
[1754983113623,1.17743496,119210.0,119200.0,0.33536369]
[1754983113922,1.17743496,119210.0,119200.0,0.63677895]
[1754983114924,1.17743496,119210.0,119200.0,0.33536369]
[1754983115127,1.17743496,119210.0,119200.0,0.63677895]
[1754983117429,0.8760197,119210.0,119200.0,0.63677895]
[1754983117731,1.17743496,119210.0,119200.0,0.63677895]
[1754983118229,1.17743496,119210.0,119200.0,0.33536369]
[1754983118436,0.40019496,119210.0,119200.0,0.63677895]
[1754983122029,0.0987797,119210.0,119200.0,0.63677895]
[1754983122229,0.40019496,119210.0,119200.0,0.63677895]
[1754983122830,0.0987797,119210.0,119200.0,0.63677895]
[1754983123030,0.40019496,119210.0,119200.0,0.63677895]
[1754983124629,0.0987797,119210.0,119200.0,0.63677895]
[1754983125027,0.40019496,119210.0,119200.0,0.63677895]
[1754983127233,0.40019496,119210.0,119200.0,0.33536369]
[1754983127531,0.40019496,119210.0,119200.0,0.63677895]
[1754983128737,0.0987797,119210.0,119200.0,0.63677895]
[1754983128936,0.40019496,119210.0,119200.0,0.63677895]
[1754983130531,0.38530496,119210.0,119200.0,0.63677895]
[1754983130739,0.40019496,119210.0,119200.0,0.63677895]
[1754983131232,0.0987797,119210.0,119200.0,0.63677895]
[1754983131537,0.40019486,119210.0,119200.0,0.63677895]
[1754983135935,0.40019486,119210.0,119200.0,0.33536369]
[1754983136141,0.40019486,119210.0,119200.0,0.63677895]
[1754983136643,0.40019486,119210.0,119200.0,0.33536369]
[1754983136942,0.40019486,119210.0,119200.0,0.63677895]
[1754983138744,0.40019486,119210.0,119200.0,0.33536369]
[1754983138938,0.40019486,119210.0,119200.0,0.63677895]
[1754983141142,0.40019486,119210.0,119200.0,0.33536369]
[1754983141343,0.40019486,119210.0,119200.0,0.63677895]
[1754983141844,0.0987796,119210.0,119200.0,0.63677895]
[1754983142043,0.40019486,119210.0,119200.0,0.63677895]
[1754983142436,0.40019486,119210.0,119200.0,0.33536369]
[1754983142942,2.82703856,119220.0,119210.0,0.0838896]
[1754983143242,2.82703856,119220.0,119210.0,0.50403486]
[1754983143243,1.32703856,119220.0,119210.0,0.50403486]
[1754983143446,1.62845382,119220.0,119210.0,0.2026196]
[1754983143640,0.85449382,119220.0,119210.0,0.2026196]
[1754983143844,0.86938382,119220.0,119210.0,0.2026196]
[1754983144042,0.2665533,119220.0,119210.0,0.2026196]
[1754983144237,0.01489,119220.0,119210.0,0.50403486]
[1754983144441,0.40018776,119220.0,119210.0,0.50403486]
[1754983144645,0.40018776,119220.0,119210.0,0.50503486]
[1754983144945,0.70160302,119220.0,119210.0,0.50503486]
[1754983145146,0.40018776,119220.0,119210.0,0.50603486]
[1754983145343,0.40018776,119220.0,119210.0,0.63210185]
[1754983145647,0.70160302,119220.0,119210.0,0.63310185]
[1754983148049,0.70160302,119220.0,119210.0,0.641807]
[1754983149645,0.0987725,119220.0,119210.0,0.641807]
[1754983149852,0.70160302,119220.0,119210.0,0.641807]
[1754983151955,0.38529776,119220.0,119210.0,0.641807]
[1754983152253,0.0838825,119220.0,119210.0,0.641807]
[1754983152454,0.38529776,119220.0,119210.0,0.641807]
[1754983152856,0.40018776,119220.0,119210.0,0.641807]
[1754983153754,0.40018776,119220.0,119210.0,0.34039174]
[1754983153952,0.40018776,119220.0,119210.0,0.641807]
[1754983158258,0.40018776,119220.0,119210.0,0.34039174]
[1754983158458,0.40018776,119220.0,119210.0,0.641807]
[1754983159055,0.0987725,119220.0,119210.0,0.641807]
[1754983159261,0.40018776,119220.0,119210.0,0.641807]
[1754983160858,0.0987725,119220.0,119210.0,0.34039174]
[1754983161161,0.40018776,119220.0,119210.0,0.641807]
[1754983162055,0.38529776,119220.0,119210.0,0.641807]
[1754983162655,0.40018776,119220.0,119210.0,0.641807]
[1754983163862,0.70160302,119220.0,119210.0,0.34039174]
[1754983164164,0.71090302,119220.0,119210.0,0.34039174]
[1754983164465,0.1080725,119220.0,119210.0,0.34039174]
[1754983164664,0.71090302,119220.0,119210.0,0.34039174]
[1754983164963,0.70160302,119220.0,119210.0,0.34039174]
[1754983172070,0.0987725,119220.0,119210.0,0.34039174]
[1754983172265,0.1080725,119220.0,119210.0,0.34039174]
[1754983172459,0.70160302,119220.0,119210.0,0.29215174]
[1754983172763,0.71090302,119220.0,119210.0,0.34030174]
[1754983173075,0.1080725,119220.0,119210.0,0.34030174]
[1754983173571,0.71090302,119220.0,119210.0,0.34030174]
[1754983175780,0.71090302,119220.0,119210.0,0.29513659]
[1754983175963,0.71090302,119220.0,119210.0,0.33442659]
[1754983177469,0.70160302,119220.0,119210.0,0.33442659]
[1754983177972,0.70160302,119220.0,119210.0,0.30248659]
[1754983178175,0.71090302,119220.0,119210.0,0.33510659]
[1754983179075,0.1080725,119220.0,119210.0,0.33510659]
[1754983179271,0.71090302,119220.0,119210.0,0.33510659]
[1754983194080,0.70160302,119220.0,119210.0,0.33199659]
[1754983198990,0.0987725,119220.0,119210.0,0.33199659]
[1754983199192,0.70160302,119220.0,119210.0,0.33199659]
[1754983201196,0.71090302,119220.0,119210.0,0.33199659]
[1754983209308,0.85020302,119220.0,119210.0,0.33199659]
[1754983209509,0.71090302,119220.0,119210.0,0.33199659]
[1754983209710,0.70160302,119220.0,119210.0,0.33199659]
[1754983210908,0.0987725,119220.0,119210.0,0.33199659]
[1754983211109,0.70160302,119220.0,119210.0,0.33199659]
[1754983211908,0.71090302,119220.0,119210.0,0.33199659]
[1754983213010,0.1080725,119220.0,119210.0,0.33199659]
[1754983213198,0.71090302,119220.0,119210.0,0.33199659]
[1754983218213,0.1080725,119220.0,119210.0,0.33199659]
[1754983218412,0.71090302,119220.0,119210.0,0.33199659]
[1754983220209,0.85020302,119220.0,119210.0,0.33199659]
[1754983220412,0.71090302,119220.0,119210.0,0.33199659]
[1754983221113,0.1080725,119220.0,119210.0,0.33199659]
[1754983221314,0.71090302,119220.0,119210.0,0.33199659]
[1754983223913,0.1080725,119220.0,119210.0,0.33199659]
[1754983224108,0.71090302,119220.0,119210.0,0.33199659]
[1754983225119,0.1080725,119220.0,119210.0,0.33199659]
[1754983225306,0.71090302,119220.0,119210.0,0.33199659]
[1754983227819,0.1080725,119220.0,119210.0,0.33199659]
[1754983228020,0.71090302,119220.0,119210.0,0.33199659]
[1754983229717,0.1080725,119220.0,119210.0,0.33199659]
[1754983230021,0.71090302,119220.0,119210.0,0.33199659]
[1754983230221,0.1080725,119220.0,119210.0,0.33199659]
[1754983230524,0.70160302,119220.0,119210.0,0.33199659]
[1754983231320,0.0987725,119220.0,119210.0,0.33199659]
[1754983231520,0.70160302,119220.0,119210.0,0.33199659]
[1754983232822,0.71090302,119220.0,119210.0,0.33199659]
[1754983233124,2.21090302,119220.0,119210.0,0.33199659]
[1754983234320,1.6080725,119220.0,119210.0,0.33199659]
[1754983234527,2.21090302,119220.0,119210.0,0.33199659]
[1754983235127,2.20160302,119220.0,119210.0,0.29865659]
[1754983235424,2.97164302,119220.0,119210.0,0.33264659]
[1754983236527,2.98094302,119220.0,119210.0,0.33264659]
[1754983239824,3.28235828,119220.0,119210.0,0.12906699]
[1754983240026,1.78235828,119220.0,119210.0,0.12906699]
[1754983240829,1.78235828,119220.0,119210.0,0.21295639]
[1754983241227,1.78235828,119220.0,119210.0,0.12906699]
[1754983242530,1.78235828,119220.0,119210.0,0.15244699]
[1754983242726,0.8781125,119220.0,119210.0,0.23633649]
[1754983242925,1.78235828,119220.0,119210.0,0.12906699]
[1754983243231,1.78235828,119220.0,119210.0,0.21295649]
[1754983243625,1.78235828,119220.0,119210.0,0.23633649]
[1754983246928,1.78235828,119220.0,119210.0,0.15244699]
[1754983247325,1.78235828,119220.0,119210.0,0.12906699]
[1754983248738,1.78235828,119220.0,119210.0,0.15244699]
[1754983250137,1.78235828,119220.0,119210.0,0.23633649]
[1754983250735,1.78235828,119220.0,119210.0,0.15244699]
[1754983252235,1.78235828,119220.0,119210.0,0.23633649]
[1754983254037,1.78235828,119220.0,119210.0,0.15244699]
[1754983262043,1.78235828,119220.0,119210.0,0.12906699]
[1754983262846,1.01231828,119220.0,119210.0,0.12906699]
[1754983263047,1.78159828,119220.0,119210.0,0.12906699]
[1754983263245,1.78159828,119220.0,119210.0,0.15298699]
[1754983263447,1.78159828,119220.0,119210.0,0.15198699]
[1754983263747,1.92089828,119220.0,119210.0,0.15298699]
[1754983264044,1.78159828,119220.0,119210.0,0.15298699]
[1754983272544,1.78159828,119220.0,119210.0,0.12806699]
[1754983272750,1.78159828,119220.0,119210.0,0.15298699]
[1754983276555,1.01231828,119220.0,119210.0,0.15298699]
[1754983276755,1.78159828,119220.0,119210.0,0.15298699]
[1754983296662,1.78159828,119220.0,119210.0,0.12806699]
[1754983297555,1.78159828,119220.0,119210.0,0.15294699]
[1754983299063,1.01231828,119220.0,119210.0,0.12806699]
[1754983299268,1.78143828,119220.0,119210.0,0.23435699]
[1754983299569,1.78143828,119220.0,119210.0,0.24896699]
[1754983300064,1.78143828,119220.0,119210.0,0.16270699]
[1754983301372,1.79819302,119220.0,119210.0,0.16270699]
[1754983301764,1.79819302,119220.0,119210.0,0.15294699]
[1754983302373,0.0838895,119210.0,119200.0,0.05872]
[1754983302560,1.78136528,119210.0,119200.0,0.13304]
[1754983302760,1.78136528,119210.0,119200.0,0.17962]
[1754983302967,1.47995002,119210.0,119200.0,0.17962]
[1754983303661,0.70161002,119210.0,119200.0,0.09436]
[1754983303866,1.61925002,119210.0,119200.0,0.18062]
[1754983304673,1.62783594,119210.0,119200.0,0.18062]
[1754983305472,1.62783594,119210.0,119200.0,0.30768699]
[1754983306473,1.62783594,119210.0,119200.0,0.18678699]
[1754983306665,1.62783594,119210.0,119200.0,0.30768699]
[1754983306972,1.61853594,119210.0,119200.0,0.39158359]
[1754983307175,1.60995002,119210.0,119200.0,0.39158359]
[1754983307870,1.0164195,119210.0,119200.0,0.39158359]
[1754983308176,1.61925002,119210.0,119200.0,0.39158359]
[1754983309577,1.62803213,119210.0,119200.0,0.39158359]
[1754983309778,1.02520161,119210.0,119200.0,0.39158359]
[1754983309978,1.62803213,119210.0,119200.0,0.39158359]
[1754983319286,1.32661687,119210.0,119200.0,0.39158359]
[1754983319492,1.62803213,119210.0,119200.0,0.39158359]
[1754983321385,1.0164195,119210.0,119200.0,0.39158359]
[1754983321694,1.60995002,119210.0,119200.0,0.39158359]
[1754983322790,1.61925002,119210.0,119200.0,0.39158359]
[1754983325601,1.62793921,119210.0,119200.0,0.39158359]
[1754983326600,1.61925002,119210.0,119200.0,0.39158359]
[1754983327607,1.61925002,119210.0,119200.0,0.30768699]
[1754983328001,1.62812981,119210.0,119200.0,0.30768699]
[1754983332104,0.0839107,119180.0,119170.0,0.2517499]
[1754983332312,1.53773082,119180.0,119170.0,0.09419]
[1754983332705,1.53773082,119180.0,119170.0,0.11916]
[1754983332908,1.47047122,119180.0,119170.0,0.11916]
[1754983334504,2.97047122,119180.0,119170.0,0.11916]
[1754983335501,2.97047122,119180.0,119170.0,0.24622699]
[1754983337414,3.03638172,119180.0,119170.0,0.24622699]
[1754983337606,3.04568172,119180.0,119170.0,0.24622699]
[1754983340110,3.04568172,119180.0,119170.0,0.16189699]
[1754983340311,3.04568172,119180.0,119170.0,0.20912699]
[1754983340511,3.04568172,119180.0,119170.0,0.24695699]
[1754983341512,3.04568172,119180.0,119170.0,0.33087469]
[1754983344718,2.26754172,119180.0,119170.0,0.28364469]
[1754983344921,0.9334712,119180.0,119170.0,0.63228995]
[1754983345123,1.53630172,119180.0,119170.0,0.33087469]
[1754983345818,1.53630172,119180.0,119170.0,0.63228995]
[1754983346017,1.53630172,119180.0,119170.0,0.33087469]
[1754983348122,0.9334711,119180.0,119170.0,0.63228995]
[1754983348311,0.3070999,119200.0,119180.0,0.0839046]
[1754983348516,0.65191236,119200.0,119190.0,0.2029236]
[1754983348714,1.42063236,119200.0,119190.0,0.2029236]
[1754983349224,1.42993236,119200.0,119190.0,0.2029236]
[1754983349619,1.43093236,119200.0,119190.0,0.2029236]
[1754983349818,1.73234762,119200.0,119190.0,0.21153124]
[1754983350225,1.73234762,119200.0,119190.0,0.33859823]
[1754983350433,1.1285171,119200.0,119190.0,0.33859823]
[1754983350726,1.73234762,119200.0,119190.0,0.33859823]
[1754983351125,1.73134762,119200.0,119190.0,0.33859823]
[1754983353834,0.2665935,119200.0,119190.0,0.33859823]
[1754983354125,1.63806402,119200.0,119190.0,0.33859823]
[1754983355330,1.64736402,119200.0,119190.0,0.33859823]
[1754983356430,1.63802402,119200.0,119190.0,0.64001349]
[1754983356726,1.47021772,119200.0,119190.0,0.64001349]
[1754983357124,0.70161772,119200.0,119190.0,0.64001349]
[1754983357326,1.47017772,119200.0,119190.0,0.64001349]
[1754983357627,1.47017772,119200.0,119190.0,0.33859823]
[1754983358526,1.47017772,119200.0,119190.0,0.64001349]
[1754983360127,1.47017772,119200.0,119190.0,0.33859823]
[1754983362234,1.47947772,119200.0,119190.0,0.33859823]
[1754983362434,0.8673472,119200.0,119190.0,0.33859823]
[1754983362634,1.47017772,119200.0,119190.0,0.33859823]
[1754983363430,1.47947772,119200.0,119190.0,0.33859823]
[1754983366034,1.47017772,119200.0,119190.0,0.33859823]
[1754983367634,1.47017772,119200.0,119190.0,0.64001349]
[1754983368831,1.47947772,119200.0,119190.0,0.64001349]
[1754983370033,1.47947772,119200.0,119190.0,0.33859823]
[1754983370538,0.8766472,119200.0,119190.0,0.33859823]
[1754983370844,1.47947772,119200.0,119190.0,0.33859823]
[1754983374941,0.01489,119200.0,119190.0,0.64001349]
[1754983375134,1.46981702,119200.0,119190.0,0.64001349]
[1754983375445,0.8669865,119200.0,119190.0,0.64001349]
[1754983375643,1.17770176,119200.0,119190.0,0.64001349]
[1754983376936,1.47911702,119200.0,119190.0,0.64001349]
[1754983377345,1.47911702,119200.0,119190.0,0.33959823]
[1754983377545,1.47911702,119200.0,119190.0,0.64101349]
[1754983378741,1.47911702,119200.0,119190.0,0.33959823]
[1754983379133,1.17770176,119200.0,119190.0,0.64101349]
[1754983379441,1.47911702,119200.0,119190.0,0.64101349]
[1754983380445,1.47911702,119200.0,119190.0,0.33099059]
[1754983380645,1.47911702,119200.0,119190.0,0.63240585]
[1754983380843,1.47911702,119200.0,119190.0,0.64794585]
[1754983381741,1.17770176,119200.0,119190.0,0.64794585]
[1754983382440,1.17770176,119200.0,119190.0,0.65671841]
[1754983382745,0.8761665,119200.0,119190.0,0.65671841]
[1754983382946,1.17758176,119200.0,119190.0,0.65671841]
[1754983390054,1.47899702,119200.0,119190.0,0.65671841]